[Event "Titled Tuesday Blitz July 25 Late 2023"]
[White "Feng, Eric"]
[Black "Cooklev, Steven"]
[WhiteFideId "30952590"]
[BlackFideId "2050552"]
[WhiteElo "2549"]
[BlackElo "2373"]
[Result "0-1"]
[Round "6"]
[TimeControl "180+2"]
[Date "2023.07.25"]
[WhiteClock "0:01:49"]
[BlackClock "0:00:39"]
[Board "102"]

1. d4 {[%clk 0:03:00]}  Nf6 {[%clk 0:02:59]} 2. c4 {[%clk 0:03:00]}  e6 {[%clk 0:03:00]} 3. Nf3 {[%clk 0:03:00]}  d5 {[%clk 0:03:00]} 4. g3 {[%clk 0:03:01]}  dxc4 {[%clk 0:03:00]} 5. Bg2 {[%clk 0:03:01]}  Nc6 {[%clk 0:03:01]} 6. O-O {[%clk 0:03:01]}  Rb8 {[%clk 0:03:01]} 7. Ne5 {[%clk 0:02:58]}  Nxe5 {[%clk 0:02:40]} 8. dxe5 {[%clk 0:02:59]}  Qxd1 {[%clk 0:02:40]} 9. Rxd1 {[%clk 0:02:57]}  Nd7 {[%clk 0:02:37]} 10. Bf4 {[%clk 0:02:55]}  Be7 {[%clk 0:02:25]} 11. Nd2 {[%clk 0:02:54]}  g5 {[%clk 0:02:21]} 12. Be3 {[%clk 0:02:55]}  Nxe5 {[%clk 0:02:21]} 13. Bd4 {[%clk 0:02:55]}  f6 {[%clk 0:01:56]} 14. Bxe5 {[%clk 0:02:52]}  fxe5 {[%clk 0:01:57]} 15. Nxc4 {[%clk 0:02:53]}  Bf6 {[%clk 0:01:54]} 16. Rac1 {[%clk 0:02:52]}  Bd7 {[%clk 0:01:42]} 17. Na5 {[%clk 0:02:48]}  c6 {[%clk 0:01:33]} 18. Nc4 {[%clk 0:02:46]}  Ke7 {[%clk 0:01:29]} 19. Nd6 {[%clk 0:02:43]}  Rhd8 {[%clk 0:01:25]} 20. Ne4 {[%clk 0:02:43]}  Be8 {[%clk 0:01:22]} 21. b3 {[%clk 0:02:40]}  b6 {[%clk 0:01:18]} 22. Kf1 {[%clk 0:02:32]}  c5 {[%clk 0:01:16]} 23. Bf3 {[%clk 0:02:26]}  h5 {[%clk 0:00:56]} 24. h3 {[%clk 0:02:25]}  Bg6 {[%clk 0:00:53]} 25. Nc3 {[%clk 0:02:18]}  Bf5 {[%clk 0:00:46]} 26. Kg2 {[%clk 0:02:15]}  g4 {[%clk 0:00:42]} 27. hxg4 {[%clk 0:02:15]}  hxg4 {[%clk 0:00:41]} 28. Be4 {[%clk 0:02:15]}  Rd4 {[%clk 0:00:40]} 29. e3 {[%clk 0:02:15]}  Rxe4 {[%clk 0:00:39]} 30. Nxe4 {[%clk 0:02:03]}  Bxe4+ {[%clk 0:00:40]} 31. Kf1 {[%clk 0:02:02]}  Bf3 {[%clk 0:00:39]} 32. Rd3 {[%clk 0:01:49]}  e4 {[%clk 0:00:39]} 0-1


[Site "https://www.chess.com"]

[Event "Titled Tuesday Blitz July 25 Late 2023"]
[White "DampFalcon"]
[Black "Graif, William"]
[BlackFideId "2609835"]
[WhiteElo "2371"]
[BlackElo "2547"]
[Result "0-1"]
[Round "6"]
[TimeControl "180+2"]
[Date "2023.07.25"]
[WhiteClock "0:00:00"]
[BlackClock "0:00:04"]
[Board "103"]

1. e4 {[%clk 0:02:59]}  e5 {[%clk 0:02:56]} 2. Nf3 {[%clk 0:02:59]}  Bc5 {[%clk 0:02:56]} 3. Nc3 {[%clk 0:02:52]}  Nf6 {[%clk 0:02:55]} 4. Bc4 {[%clk 0:02:51]}  Nc6 {[%clk 0:02:50]} 5. d3 {[%clk 0:02:52]}  d6 {[%clk 0:02:50]} 6. O-O {[%clk 0:02:50]}  Bg4 {[%clk 0:02:50]} 7. h3 {[%clk 0:02:48]}  Bh5 {[%clk 0:02:50]} 8. Bg5 {[%clk 0:02:46]}  h6 {[%clk 0:02:40]} 9. Bh4 {[%clk 0:02:45]}  g5 {[%clk 0:02:39]} 10. Bg3 {[%clk 0:02:26]}  Qd7 {[%clk 0:02:22]} 11. Bb5 {[%clk 0:02:01]}  Rg8 {[%clk 0:01:57]} 12. Nd5 {[%clk 0:01:45]}  Nh7 {[%clk 0:01:43]} 13. b4 {[%clk 0:01:44]}  Bb6 {[%clk 0:01:31]} 14. Nxe5 {[%clk 0:01:16]}  Bxd1 {[%clk 0:01:04]} 15. Nxd7 {[%clk 0:01:15]}  Kxd7 {[%clk 0:00:52]} 16. Raxd1 {[%clk 0:01:14]}  Bd4 {[%clk 0:00:47]} 17. c3 {[%clk 0:00:57]}  Bg7 {[%clk 0:00:47]} 18. d4 {[%clk 0:00:53]}  a6 {[%clk 0:00:46]} 19. Bd3 {[%clk 0:00:52]}  Nf6 {[%clk 0:00:43]} 20. Nxf6+ {[%clk 0:00:39]}  Bxf6 {[%clk 0:00:44]} 21. f4 {[%clk 0:00:36]}  gxf4 {[%clk 0:00:39]} 22. Bxf4 {[%clk 0:00:37]}  Bg7 {[%clk 0:00:33]} 23. Be3 {[%clk 0:00:35]}  Rgf8 {[%clk 0:00:32]} 24. Rf5 {[%clk 0:00:29]}  Rae8 {[%clk 0:00:31]} 25. Rh5 {[%clk 0:00:26]}  Ne7 {[%clk 0:00:25]} 26. Rf1 {[%clk 0:00:16]}  Ng8 {[%clk 0:00:24]} 27. Rhf5 {[%clk 0:00:16]}  Re7 {[%clk 0:00:24]} 28. Bf2 {[%clk 0:00:12]}  Ke8 {[%clk 0:00:17]} 29. Bh4 {[%clk 0:00:12]}  Rd7 {[%clk 0:00:18]} 30. b5 {[%clk 0:00:09]}  axb5 {[%clk 0:00:15]} 31. Bxb5 {[%clk 0:00:10]}  c6 {[%clk 0:00:16]} 32. Bc4 {[%clk 0:00:10]}  Ne7 {[%clk 0:00:17]} 33. Rxf7 {[%clk 0:00:09]}  Rxf7 {[%clk 0:00:14]} 34. Rxf7 {[%clk 0:00:10]}  Ng6 {[%clk 0:00:15]} 35. Rxd7 {[%clk 0:00:08]}  Kxd7 {[%clk 0:00:16]} 36. Bg3 {[%clk 0:00:08]}  c5 {[%clk 0:00:16]} 37. Bf7 {[%clk 0:00:08]}  Nh8 {[%clk 0:00:16]} 38. Bf2 {[%clk 0:00:06]}  Nxf7 {[%clk 0:00:16]} 39. dxc5 {[%clk 0:00:04]}  Bxc3 {[%clk 0:00:17]} 40. cxd6 {[%clk 0:00:04]}  Nxd6 {[%clk 0:00:18]} 41. Be3 {[%clk 0:00:03]}  h5 {[%clk 0:00:17]} 42. g4 {[%clk 0:00:04]}  hxg4 {[%clk 0:00:15]} 43. hxg4 {[%clk 0:00:04]}  Nxe4 {[%clk 0:00:16]} 44. Kg2 {[%clk 0:00:05]}  Ke6 {[%clk 0:00:15]} 45. Kf3 {[%clk 0:00:06]}  Nf6 {[%clk 0:00:13]} 46. g5 {[%clk 0:00:05]}  Nd5 {[%clk 0:00:13]} 47. Bc1 {[%clk 0:00:05]}  Kf5 {[%clk 0:00:13]} 48. Ke2 {[%clk 0:00:05]}  Nf4+ {[%clk 0:00:12]} 49. Kd1 {[%clk 0:00:04]}  Kxg5 {[%clk 0:00:12]} 50. Kc2 {[%clk 0:00:04]}  Be5 {[%clk 0:00:12]} 51. Kb3 {[%clk 0:00:04]}  Kf5 {[%clk 0:00:13]} 52. Be3 {[%clk 0:00:05]}  Ke4 {[%clk 0:00:13]} 53. Bc5 {[%clk 0:00:05]}  Kd5 {[%clk 0:00:13]} 54. Bf8 {[%clk 0:00:05]}  Ne6 {[%clk 0:00:12]} 55. Bh6 {[%clk 0:00:05]}  Kc6 {[%clk 0:00:11]} 56. Bd2 {[%clk 0:00:05]}  Kb5 {[%clk 0:00:11]} 57. Be1 {[%clk 0:00:05]}  Nc5+ {[%clk 0:00:11]} 58. Kc2 {[%clk 0:00:05]}  Ka4 {[%clk 0:00:11]} 59. Kb1 {[%clk 0:00:06]}  Nd3 {[%clk 0:00:11]} 60. Bd2 {[%clk 0:00:06]}  Ka3 {[%clk 0:00:11]} 61. Be3 {[%clk 0:00:06]}  Bc3 {[%clk 0:00:08]} 62. Bb6 {[%clk 0:00:04]}  Nb4 {[%clk 0:00:06]} 63. Bc5 {[%clk 0:00:05]}  Ka4 {[%clk 0:00:06]} 64. Bf8 {[%clk 0:00:04]}  Nd5 {[%clk 0:00:06]} 65. Bd6 {[%clk 0:00:04]}  Bd4 {[%clk 0:00:07]} 66. Bf8 {[%clk 0:00:04]}  Nc3+ {[%clk 0:00:07]} 67. Ka1 {[%clk 0:00:04]}  b5 {[%clk 0:00:06]} 68. a3 {[%clk 0:00:01]}  Ne4+ {[%clk 0:00:04]} 69. Ka2 {[%clk 0:00:00]}  Bc5 {[%clk 0:00:04]} 0-1


[Site "https://www.chess.com"]

[Event "Titled Tuesday Blitz July 25 Late 2023"]
[White "Campos, Maria Jose"]
[Black "Rottenwohrer Suarez, Juan"]
[WhiteFideId "146803"]
[BlackFideId "32068182"]
[WhiteElo "2360"]
[BlackElo "2517"]
[Result "0-1"]
[Round "6"]
[TimeControl "180+2"]
[Date "2023.07.25"]
[WhiteClock "0:00:50"]
[BlackClock "0:00:02"]
[Board "105"]

1. c4 {[%clk 0:02:59]}  e6 {[%clk 0:02:55]} 2. g3 {[%clk 0:03:00]}  d5 {[%clk 0:02:53]} 3. Nf3 {[%clk 0:03:01]}  Nf6 {[%clk 0:02:52]} 4. Bg2 {[%clk 0:03:02]}  Be7 {[%clk 0:02:50]} 5. O-O {[%clk 0:03:03]}  O-O {[%clk 0:02:50]} 6. d4 {[%clk 0:03:02]}  c6 {[%clk 0:02:43]} 7. b3 {[%clk 0:03:02]}  b6 {[%clk 0:02:39]} 8. Bb2 {[%clk 0:03:02]}  Bb7 {[%clk 0:02:35]} 9. Qc2 {[%clk 0:03:03]}  Nbd7 {[%clk 0:02:27]} 10. Rd1 {[%clk 0:03:02]}  Rc8 {[%clk 0:02:27]} 11. Nc3 {[%clk 0:03:02]}  c5 {[%clk 0:02:24]} 12. dxc5 {[%clk 0:03:02]}  bxc5 {[%clk 0:02:01]} 13. cxd5 {[%clk 0:02:57]}  exd5 {[%clk 0:01:59]} 14. Nh4 {[%clk 0:02:57]}  Nb6 {[%clk 0:01:47]} 15. Nf5 {[%clk 0:02:55]}  Re8 {[%clk 0:00:37]} 16. a4 {[%clk 0:02:25]}  a5 {[%clk 0:00:35]} 17. Nb5 {[%clk 0:02:23]}  Bf8 {[%clk 0:00:33]} 18. Qc3 {[%clk 0:02:22]}  d4 {[%clk 0:00:28]} 19. Qxa5 {[%clk 0:02:21]}  Bxg2 {[%clk 0:00:28]} 20. Kxg2 {[%clk 0:02:18]}  Ra8 {[%clk 0:00:27]} 21. Qxa8 {[%clk 0:01:56]}  Qxa8+ {[%clk 0:00:26]} 22. Kg1 {[%clk 0:01:55]}  Qc6 {[%clk 0:00:19]} 23. e3 {[%clk 0:01:43]}  dxe3 {[%clk 0:00:13]} 24. Nxe3 {[%clk 0:01:42]}  Ne4 {[%clk 0:00:11]} 25. h4 {[%clk 0:01:36]}  h6 {[%clk 0:00:06]} 26. Rd3 {[%clk 0:01:22]}  Qg6 {[%clk 0:00:02]} 27. Rad1 {[%clk 0:01:18]}  Nxg3 {[%clk 0:00:02]} 28. fxg3 {[%clk 0:01:18]}  Qxg3+ {[%clk 0:00:03]} 29. Ng2 {[%clk 0:01:18]}  Qg4 {[%clk 0:00:03]} 30. a5 {[%clk 0:01:14]}  Re2 {[%clk 0:00:02]} 31. Rg3 {[%clk 0:00:54]}  Qxg3 {[%clk 0:00:02]} 32. Be5 {[%clk 0:00:50]}  Qxg2# {[%clk 0:00:02]} 0-1


[Site "https://www.chess.com"]

[Event "Titled Tuesday Blitz July 25 Late 2023"]
[White "kripri"]
[Black "JERO-8914"]
[WhiteElo "2346"]
[BlackElo "2495"]
[Result "1-0"]
[Round "6"]
[TimeControl "180+2"]
[Date "2023.07.25"]
[WhiteClock "0:00:11"]
[BlackClock "0:00:05"]
[Board "108"]

1. e4 {[%clk 0:03:00]}  c5 {[%clk 0:02:53]} 2. Nf3 {[%clk 0:03:00]}  Nc6 {[%clk 0:02:53]} 3. Bb5 {[%clk 0:02:59]}  g6 {[%clk 0:02:53]} 4. O-O {[%clk 0:02:58]}  Bg7 {[%clk 0:02:53]} 5. Re1 {[%clk 0:02:58]}  e5 {[%clk 0:02:53]} 6. d3 {[%clk 0:02:49]}  Nge7 {[%clk 0:02:52]} 7. Bg5 {[%clk 0:02:48]}  Qc7 {[%clk 0:01:45]} 8. Nc3 {[%clk 0:02:26]}  O-O {[%clk 0:01:18]} 9. Qd2 {[%clk 0:02:25]}  d6 {[%clk 0:01:12]} 10. h3 {[%clk 0:02:17]}  a6 {[%clk 0:01:07]} 11. Bc4 {[%clk 0:02:17]}  b5 {[%clk 0:01:06]} 12. Bd5 {[%clk 0:02:07]}  Rb8 {[%clk 0:01:02]} 13. Bxc6 {[%clk 0:02:05]}  Nxc6 {[%clk 0:01:02]} 14. Nd5 {[%clk 0:02:05]}  Qa7 {[%clk 0:00:55]} 15. Bh6 {[%clk 0:01:52]}  Ne7 {[%clk 0:00:45]} 16. Bxg7 {[%clk 0:01:33]}  Kxg7 {[%clk 0:00:45]} 17. Ne3 {[%clk 0:01:08]}  Be6 {[%clk 0:00:41]} 18. Ng5 {[%clk 0:01:06]}  Bd7 {[%clk 0:00:39]} 19. Nd5 {[%clk 0:01:00]}  Nxd5 {[%clk 0:00:37]} 20. exd5 {[%clk 0:01:00]}  Qc7 {[%clk 0:00:31]} 21. c4 {[%clk 0:01:00]}  h6 {[%clk 0:00:30]} 22. Ne4 {[%clk 0:00:56]}  f5 {[%clk 0:00:30]} 23. Nc3 {[%clk 0:00:54]}  b4 {[%clk 0:00:30]} 24. Ne2 {[%clk 0:00:48]}  Qd8 {[%clk 0:00:23]} 25. b3 {[%clk 0:00:47]}  Qh4 {[%clk 0:00:23]} 26. Qe3 {[%clk 0:00:44]}  Rbe8 {[%clk 0:00:17]} 27. Kh1 {[%clk 0:00:37]}  h5 {[%clk 0:00:14]} 28. Ng1 {[%clk 0:00:36]}  f4 {[%clk 0:00:14]} 29. Qe2 {[%clk 0:00:31]}  f3 {[%clk 0:00:10]} 30. Nxf3 {[%clk 0:00:29]}  Qf6 {[%clk 0:00:08]} 31. Kh2 {[%clk 0:00:13]}  Qf4+ {[%clk 0:00:08]} 32. Kg1 {[%clk 0:00:10]}  Bxh3 {[%clk 0:00:05]} 33. gxh3 {[%clk 0:00:11]}  Qxf3 {[%clk 0:00:06]} 34. Qxf3 {[%clk 0:00:11]}  Rxf3 {[%clk 0:00:06]} 35. Re3 {[%clk 0:00:12]}  Ref8 {[%clk 0:00:06]} 36. Kg2 {[%clk 0:00:11]}  R3f4 {[%clk 0:00:06]} 37. Rae1 {[%clk 0:00:11]}  Rd4 {[%clk 0:00:06]} 38. Rd1 {[%clk 0:00:09]}  Rdf4 {[%clk 0:00:06]} 39. Rd2 {[%clk 0:00:09]}  g5 {[%clk 0:00:05]} 40. Re4 {[%clk 0:00:09]}  Rf3 {[%clk 0:00:05]} 41. Re3 {[%clk 0:00:09]}  g4 {[%clk 0:00:04]} 42. hxg4 {[%clk 0:00:09]}  hxg4 {[%clk 0:00:05]} 43. Re4 {[%clk 0:00:07]}  R8f4 {[%clk 0:00:04]} 44. Re3 {[%clk 0:00:06]}  Kg6 {[%clk 0:00:04]} 45. Rde2 {[%clk 0:00:07]}  Rxe3 {[%clk 0:00:04]} 46. fxe3 {[%clk 0:00:06]}  Rf8 {[%clk 0:00:04]} 47. Kg3 {[%clk 0:00:06]}  Kg5 {[%clk 0:00:04]} 48. Rf2 {[%clk 0:00:05]}  Rh8 {[%clk 0:00:05]} 49. Rf7 {[%clk 0:00:05]}  Rh3+ {[%clk 0:00:05]} 50. Kg2 {[%clk 0:00:05]}  Rxe3 {[%clk 0:00:05]} 51. Rd7 {[%clk 0:00:06]}  Rxd3 {[%clk 0:00:05]} 52. Rxd6 {[%clk 0:00:06]}  Rd2+ {[%clk 0:00:04]} 53. Kf1 {[%clk 0:00:07]}  Rd3 {[%clk 0:00:04]} 54. Rxa6 {[%clk 0:00:07]}  g3 {[%clk 0:00:03]} 55. Ra8 {[%clk 0:00:07]}  Kf4 {[%clk 0:00:04]} 56. Rf8+ {[%clk 0:00:07]}  Ke3 {[%clk 0:00:04]} 57. Rg8 {[%clk 0:00:07]}  Kf3 {[%clk 0:00:04]} 58. Rf8+ {[%clk 0:00:07]}  Kg4 {[%clk 0:00:05]} 59. Rg8+ {[%clk 0:00:08]}  Kf4 {[%clk 0:00:05]} 60. Rf8+ {[%clk 0:00:08]}  Ke3 {[%clk 0:00:06]} 61. Kg2 {[%clk 0:00:08]}  Kd2 {[%clk 0:00:05]} 62. Rf3 {[%clk 0:00:08]}  Rxf3 {[%clk 0:00:05]} 63. Kxf3 {[%clk 0:00:09]}  Kd3 {[%clk 0:00:05]} 64. d6 {[%clk 0:00:09]}  e4+ {[%clk 0:00:06]} 65. Kxg3 {[%clk 0:00:10]}  e3 {[%clk 0:00:07]} 66. d7 {[%clk 0:00:10]}  e2 {[%clk 0:00:06]} 67. d8=Q+ {[%clk 0:00:11]}  Kc2 {[%clk 0:00:05]} 68. Qe7 {[%clk 0:00:11]} 1-0


[Site "https://www.chess.com"]

[Event "Titled Tuesday Blitz July 25 Late 2023"]
[White "Korpics, Zsolt"]
[Black "ZugZwang1201"]
[WhiteFideId "705241"]
[WhiteElo "2339"]
[BlackElo "2478"]
[Result "1-0"]
[Round "6"]
[TimeControl "180+2"]
[Date "2023.07.25"]
[WhiteClock "0:00:07"]
[BlackClock "0:00:00"]
[Board "109"]

1. e4 {[%clk 0:03:00]}  c5 {[%clk 0:03:00]} 2. Nf3 {[%clk 0:03:00]}  e6 {[%clk 0:03:00]} 3. d4 {[%clk 0:03:00]}  cxd4 {[%clk 0:03:01]} 4. Nxd4 {[%clk 0:03:01]}  a6 {[%clk 0:03:02]} 5. Bd3 {[%clk 0:03:01]}  Qc7 {[%clk 0:03:02]} 6. c4 {[%clk 0:02:58]}  Nf6 {[%clk 0:03:02]} 7. O-O {[%clk 0:02:58]}  h5 {[%clk 0:03:01]} 8. h3 {[%clk 0:02:36]}  Be7 {[%clk 0:03:00]} 9. Nc3 {[%clk 0:02:32]}  d6 {[%clk 0:03:00]} 10. Be3 {[%clk 0:02:29]}  Nbd7 {[%clk 0:03:00]} 11. Rc1 {[%clk 0:02:29]}  h4 {[%clk 0:03:00]} 12. b3 {[%clk 0:02:28]}  Nh5 {[%clk 0:03:00]} 13. Nde2 {[%clk 0:02:06]}  g5 {[%clk 0:03:00]} 14. f4 {[%clk 0:02:00]}  gxf4 {[%clk 0:02:58]} 15. Nxf4 {[%clk 0:02:01]}  Ng3 {[%clk 0:02:57]} 16. Rf3 {[%clk 0:01:56]}  Ne5 {[%clk 0:02:57]} 17. Rf2 {[%clk 0:01:52]}  Bd7 {[%clk 0:02:42]} 18. Nfe2 {[%clk 0:01:44]}  Rg8 {[%clk 0:02:36]} 19. Nxg3 {[%clk 0:01:43]}  Rxg3 {[%clk 0:02:32]} 20. Qe2 {[%clk 0:01:42]}  Qa5 {[%clk 0:02:19]} 21. Bb1 {[%clk 0:01:18]}  O-O-O {[%clk 0:02:10]} 22. Qd2 {[%clk 0:01:09]}  Rdg8 {[%clk 0:01:34]} 23. Kh1 {[%clk 0:00:20]}  Qd8 {[%clk 0:00:49]} 24. Ne2 {[%clk 0:00:19]}  R3g7 {[%clk 0:00:33]} 25. c5 {[%clk 0:00:19]}  Bc6 {[%clk 0:00:29]} 26. cxd6 {[%clk 0:00:19]}  Qxd6 {[%clk 0:00:30]} 27. Qxd6 {[%clk 0:00:18]}  Bxd6 {[%clk 0:00:31]} 28. Nd4 {[%clk 0:00:16]}  Kd7 {[%clk 0:00:28]} 29. Bf4 {[%clk 0:00:14]}  Ke7 {[%clk 0:00:21]} 30. Bxe5 {[%clk 0:00:14]}  Bxe5 {[%clk 0:00:21]} 31. Nxc6+ {[%clk 0:00:15]}  bxc6 {[%clk 0:00:22]} 32. Rxc6 {[%clk 0:00:15]}  Rd8 {[%clk 0:00:21]} 33. Rc1 {[%clk 0:00:14]}  Rd4 {[%clk 0:00:19]} 34. Rcf1 {[%clk 0:00:13]}  Bg3 {[%clk 0:00:18]} 35. Rf3 {[%clk 0:00:12]}  a5 {[%clk 0:00:18]} 36. a3 {[%clk 0:00:12]}  Be5 {[%clk 0:00:14]} 37. Rd3 {[%clk 0:00:11]}  f6 {[%clk 0:00:14]} 38. Rxd4 {[%clk 0:00:11]}  Bxd4 {[%clk 0:00:15]} 39. b4 {[%clk 0:00:12]}  axb4 {[%clk 0:00:15]} 40. axb4 {[%clk 0:00:12]}  Rg3 {[%clk 0:00:15]} 41. Rf3 {[%clk 0:00:12]}  Rg5 {[%clk 0:00:13]} 42. Rd3 {[%clk 0:00:11]}  e5 {[%clk 0:00:13]} 43. Ba2 {[%clk 0:00:10]}  Kd6 {[%clk 0:00:12]} 44. Bd5 {[%clk 0:00:10]}  Rg7 {[%clk 0:00:10]} 45. Ra3 {[%clk 0:00:10]}  Rc7 {[%clk 0:00:09]} 46. Ra6+ {[%clk 0:00:11]}  Ke7 {[%clk 0:00:07]} 47. Rc6 {[%clk 0:00:09]}  Ra7 {[%clk 0:00:05]} 48. Rc1 {[%clk 0:00:10]}  Ra3 {[%clk 0:00:05]} 49. Rb1 {[%clk 0:00:10]}  Bb6 {[%clk 0:00:04]} 50. b5 {[%clk 0:00:10]}  Kd7 {[%clk 0:00:04]} 51. Bc6+ {[%clk 0:00:10]}  Kd6 {[%clk 0:00:04]} 52. Rd1+ {[%clk 0:00:10]}  Bd4 {[%clk 0:00:05]} 53. Bd5 {[%clk 0:00:09]}  Kc5 {[%clk 0:00:04]} 54. Bc6 {[%clk 0:00:08]}  Kb6 {[%clk 0:00:04]} 55. Rb1 {[%clk 0:00:07]}  Ra2 {[%clk 0:00:04]} 56. Bd5 {[%clk 0:00:07]}  Bb2 {[%clk 0:00:00]} 57. Bxa2 {[%clk 0:00:07]} 1-0


[Site "https://www.chess.com"]

[Event "Titled Tuesday Blitz July 25 Late 2023"]
[White "Bobkov, Vadim"]
[Black "Vifleemskaia, Svetlana"]
[WhiteFideId "34110876"]
[BlackFideId "4129490"]
[WhiteElo "2459"]
[BlackElo "2323"]
[Result "0-1"]
[Round "6"]
[TimeControl "180+2"]
[Date "2023.07.25"]
[WhiteClock "0:00:00"]
[BlackClock "0:00:04"]
[Board "112"]

1. d4 {[%clk 0:02:59]}  Nf6 {[%clk 0:02:59]} 2. c4 {[%clk 0:02:47]}  e6 {[%clk 0:02:58]} 3. Nc3 {[%clk 0:02:47]}  Bb4 {[%clk 0:02:57]} 4. f3 {[%clk 0:02:47]}  d5 {[%clk 0:02:56]} 5. a3 {[%clk 0:02:44]}  Bxc3+ {[%clk 0:02:55]} 6. bxc3 {[%clk 0:02:45]}  O-O {[%clk 0:02:56]} 7. e3 {[%clk 0:02:43]}  c5 {[%clk 0:02:55]} 8. cxd5 {[%clk 0:02:40]}  exd5 {[%clk 0:02:54]} 9. Bd3 {[%clk 0:02:39]}  b6 {[%clk 0:02:50]} 10. Ne2 {[%clk 0:02:39]}  Ba6 {[%clk 0:02:49]} 11. O-O {[%clk 0:02:38]}  Bxd3 {[%clk 0:02:48]} 12. Qxd3 {[%clk 0:02:39]}  Re8 {[%clk 0:02:48]} 13. Ng3 {[%clk 0:02:38]}  h5 {[%clk 0:02:36]} 14. Ra2 {[%clk 0:02:30]}  Nc6 {[%clk 0:02:28]} 15. Re2 {[%clk 0:02:24]}  Qd7 {[%clk 0:02:08]} 16. Bb2 {[%clk 0:01:55]}  Rad8 {[%clk 0:02:04]} 17. h3 {[%clk 0:01:30]}  Re6 {[%clk 0:01:56]} 18. Qf5 {[%clk 0:01:18]}  g6 {[%clk 0:01:35]} 19. Qg5 {[%clk 0:01:10]}  Kh7 {[%clk 0:01:21]} 20. e4 {[%clk 0:00:55]}  cxd4 {[%clk 0:01:08]} 21. e5 {[%clk 0:00:43]}  Ng8 {[%clk 0:00:35]} 22. cxd4 {[%clk 0:00:39]}  Nce7 {[%clk 0:00:20]} 23. f4 {[%clk 0:00:36]}  Nh6 {[%clk 0:00:08]} 24. f5 {[%clk 0:00:31]}  Nexf5 {[%clk 0:00:06]} 25. Bc1 {[%clk 0:00:10]}  Rc8 {[%clk 0:00:03]} 26. Nxf5 {[%clk 0:00:08]}  gxf5 {[%clk 0:00:04]} 27. Rxf5 {[%clk 0:00:05]}  Rg6 {[%clk 0:00:03]} 28. Qxh5 {[%clk 0:00:03]}  Qxf5 {[%clk 0:00:03]} 29. Qxf5 {[%clk 0:00:00]}  Nxf5 {[%clk 0:00:04]} 0-1


[Site "https://www.chess.com"]

[Event "Titled Tuesday Blitz July 25 Late 2023"]
[White "Tsyhanchuk, Stanislav"]
[Black "Perske, Thore"]
[WhiteFideId "13505130"]
[BlackFideId "12902195"]
[WhiteElo "2322"]
[BlackElo "2458"]
[Result "0-1"]
[Round "6"]
[TimeControl "180+2"]
[Date "2023.07.25"]
[WhiteClock "0:00:00"]
[BlackClock "0:00:13"]
[Board "113"]

1. c4 {[%clk 0:03:00]}  c6 {[%clk 0:02:58]} 2. Nc3 {[%clk 0:02:59]}  d5 {[%clk 0:02:58]} 3. e3 {[%clk 0:02:59]}  Nf6 {[%clk 0:02:57]} 4. Nf3 {[%clk 0:03:00]}  e6 {[%clk 0:02:58]} 5. b3 {[%clk 0:02:57]}  Bd6 {[%clk 0:02:58]} 6. Bb2 {[%clk 0:02:56]}  O-O {[%clk 0:02:58]} 7. d4 {[%clk 0:02:57]}  Nbd7 {[%clk 0:02:57]} 8. Bd3 {[%clk 0:02:57]}  Qe7 {[%clk 0:02:46]} 9. O-O {[%clk 0:02:55]}  dxc4 {[%clk 0:02:35]} 10. bxc4 {[%clk 0:02:53]}  c5 {[%clk 0:02:36]} 11. d5 {[%clk 0:02:40]}  b6 {[%clk 0:02:08]} 12. e4 {[%clk 0:02:36]}  Ne5 {[%clk 0:02:05]} 13. Nxe5 {[%clk 0:02:32]}  Bxe5 {[%clk 0:02:06]} 14. Qe2 {[%clk 0:02:24]}  Bd4 {[%clk 0:02:06]} 15. e5 {[%clk 0:02:20]}  Nd7 {[%clk 0:01:54]} 16. d6 {[%clk 0:02:17]}  Qg5 {[%clk 0:01:52]} 17. Qe4 {[%clk 0:02:16]}  f5 {[%clk 0:01:35]} 18. Qxa8 {[%clk 0:02:12]}  Nxe5 {[%clk 0:01:30]} 19. Be2 {[%clk 0:02:03]}  f4 {[%clk 0:01:26]} 20. Qe4 {[%clk 0:01:55]}  f3 {[%clk 0:01:07]} 21. Bxf3 {[%clk 0:01:47]}  Nxf3+ {[%clk 0:01:07]} 22. Kh1 {[%clk 0:01:48]}  Nd2 {[%clk 0:01:05]} 23. Qc6 {[%clk 0:01:24]}  Nxf1 {[%clk 0:00:58]} 24. Rxf1 {[%clk 0:01:21]}  Qd2 {[%clk 0:00:55]} 25. d7 {[%clk 0:01:15]}  Bxd7 {[%clk 0:00:53]} 26. Qxd7 {[%clk 0:01:16]}  Qxb2 {[%clk 0:00:52]} 27. Qxe6+ {[%clk 0:01:15]}  Kh8 {[%clk 0:00:52]} 28. Ne4 {[%clk 0:01:12]}  Qe2 {[%clk 0:00:43]} 29. Rg1 {[%clk 0:01:12]}  Bxf2 {[%clk 0:00:39]} 30. Qd6 {[%clk 0:00:47]}  Re8 {[%clk 0:00:27]} 31. Nxf2 {[%clk 0:00:28]}  Qxf2 {[%clk 0:00:28]} 32. h3 {[%clk 0:00:23]}  h6 {[%clk 0:00:25]} 33. Kh2 {[%clk 0:00:21]}  Qe3 {[%clk 0:00:17]} 34. Qd7 {[%clk 0:00:14]}  Qe5+ {[%clk 0:00:12]} 35. Kh1 {[%clk 0:00:14]}  Qe7 {[%clk 0:00:13]} 36. Qd5 {[%clk 0:00:14]}  Qe6 {[%clk 0:00:13]} 37. Qd3 {[%clk 0:00:12]}  Qe4 {[%clk 0:00:13]} 38. Qd7 {[%clk 0:00:12]}  Re7 {[%clk 0:00:13]} 39. Qc8+ {[%clk 0:00:00]}  Kh7 {[%clk 0:00:13]} 0-1


[Site "https://www.chess.com"]